fUST/lending_fUST_20240102
["ID","MTS","AMOUNT","RATE_DAILY","PERIOD"]
[309816675,1704166246203,-675.17,0.00041369,7]
[309816677,1704166246212,-506.48763005,0.00041369,7]
[309816678,1704166246221,-500.0,0.00041369,7]
[309816680,1704166246229,-285.90460365,0.00041505,2]
[309816682,1704166246238,-4355.49112622,0.00041505,4]
[309816683,1704166246247,-500.0,0.00041506,7]
[309816685,1704166246257,-500.0,0.00041506,7]
[309816687,1704166246266,-500.0,0.00041506,7]
[309816688,1704166246275,-500.0,0.00041506,7]
[309816690,1704166246284,-500.0,0.00041506,7]
[309816691,1704166246293,-500.0,0.00041506,7]
[309816693,1704166246303,-500.0,0.00041506,7]
[309816695,1704166246312,-500.0,0.00041506,7]
[309816697,1704166246321,-500.0,0.00041506,7]
[309816698,1704166246393,-1545.81,0.00041506,7]
[309816699,1704166246402,-826.12,0.00041506,7]
[309816700,1704166246412,-613.72,0.00041506,7]
[309816701,1704166246421,-1112.69,0.00041506,7]
[309816702,1704166246430,-500.0,0.00041506,7]
[309816703,1704166246440,-500.0,0.00041506,7]
[309816704,1704166246449,-947.4,0.00041506,7]
[309816705,1704166246459,-534.66263788,0.00041506,7]
[309816706,1704166246468,-500.0,0.00041506,7]
[309816707,1704166246477,-3247.04,0.00041506,7]
[309816709,1704166246487,-500.0,0.00041506,7]
[309816710,1704166246497,-500.0,0.00041506,7]
[309816712,1704166246506,-395.96560805,0.00041506,7]
[309816714,1704166246516,-500.0,0.00041506,2]
[309816716,1704166246526,-648.55,0.00041506,7]
[309816718,1704166246536,-500.0,0.00041506,7]
[309816720,1704166246545,-500.0,0.00041506,7]
[309816722,1704166246555,-1560.68159076,0.00041506,3]
[309816725,1704166246632,-2101.2,0.00041369,7]
[309816726,1704166246641,-7547.47656722,0.00041506,3]
[309816727,1704166246654,-516.850155,0.00041506,3]
[309816728,1704166246734,-218.25267146,0.00034172,4]
[309816729,1704166246743,-705.01385766,0.00037884,4]
[309816730,1704166246752,-203.14347093,0.00041506,3]
[309816731,1704166246765,-813.89286283,0.00041506,3]
[309816732,1704166246780,-16623.8636557,0.00041506,3]
[309816733,1704166246792,-456.96152163,0.00041506,3]
[309816734,1704166246911,-656.0044415,0.00037187,2]
[309816735,1704166246920,-200.16352487,0.00041095,2]
[309816736,1704166246930,-282.82346354,0.00041095,7]
[309816737,1704166246939,-350.98489009,0.00041222,3]
[309816738,1704167025898,973.92963115,0.00020832,2]
[309816739,1704167148143,629.8191312,0.00021136,2]
[309816740,1704167184856,168.030591,0.00021918,2]
[309816741,1704167357204,24900.0,0.0002111,2]
[309816805,1704167432429,-4907.56129694,0.00022096,2]
[309816806,1704167432439,-1774.09209254,0.00022096,2]
[309816808,1704167432449,-253.10124953,0.00022097,2]
[309816809,1704167432458,-154.84515485,0.00022097,2]
[309816811,1704167432468,-593.59882205,0.00022097,2]
[309816812,1704167432477,-245.55855306,0.00022098,2]
[309816813,1704167432487,-2031.17478188,0.00022098,2]
[309816814,1704167432496,-2989.40003667,0.00022098,2]
[309816815,1704167432506,-154.84515485,0.00022099,2]
[309816816,1704167432515,-154.84515485,0.00022099,2]
[309816817,1704167432525,-675.69429378,0.00022099,2]
[309816818,1704167432534,-154.84515485,0.00022099,2]
[309816819,1704167432544,-154.84515485,0.00022099,2]
[309816820,1704167432553,-163.89682936,0.000221,2]
[309816821,1704167432562,-271.41585341,0.000221,2]
[309816822,1704167432572,-10473.05577926,0.000221,2]
[309816823,1704167432581,-524.73174263,0.00022101,2]
[309816824,1704167432591,-4802.57442748,0.00022101,2]
[309816825,1704167432600,-13669.99879992,0.00022101,2]
[309816826,1704167432610,-264.55836507,0.00022102,2]
[309816827,1704167432619,-2047.4343813,0.00022103,2]
[309816828,1704167432629,-162.44234547,0.00022103,2]
[309816829,1704167432638,-253.50303766,0.00022107,7]
[309816830,1704167432648,-155.84514001,0.0002212,2]
[309816831,1704167432657,-235.9753811,0.00022141,2]
[309816832,1704167432666,-903.45956633,0.00023146,2]
[309816833,1704167432675,-4319.85660163,0.00023147,2]
[309816834,1704167432685,-168.030591,0.000232,2]
[309816835,1704167432694,-942.74197831,0.00024053,2]
[309816836,1704167432703,-317.03723204,0.00024153,2]
[309816837,1704167432713,-200.0,0.0002432,7]
[309816838,1704167432722,-168.030591,0.00024482,2]
[309816839,1704167432731,-612.7701582,0.00025,2]
[309816840,1704167432740,-154.84515485,0.00025,2]
[309816841,1704167432750,-268.6781661,0.00026074,2]
[309816842,1704167432759,-1795.332254,0.00026301,2]
[309816843,1704167432768,-280.0,0.00026752,15]
[309816844,1704167432777,-1795.332254,0.00027275,2]
[309816845,1704167432786,-1795.332254,0.00028248,2]
[309816846,1704167432795,-942.74197828,0.00028289,2]
[309816848,1704167432804,-1795.332254,0.00029221,2]
[309816849,1704167432813,-370.0,0.00029428,15]
[309816850,1704167432823,-243.99091742,0.0003,4]
[309816851,1704167432832,-639.5302461,0.0003,4]
[309816852,1704167432842,-1795.332254,0.00030194,2]
[309816853,1704167432851,-942.74197828,0.00032524,2]
[309816854,1704167432860,-1000.0,0.00034,7]
[309816855,1704167432870,-2508.11,0.00034745,3]
[309816856,1704167432879,-3009.73,0.00034755,3]
[309816857,1704167432889,-360.09581363,0.00034765,2]
[309816858,1704167432898,-156.55866731,0.00034765,4]
[309816859,1704167432907,-154.86062544,0.00034765,2]
[309816860,1704167432917,-154.86062544,0.00034765,4]
[309816861,1704167432926,-1575.79265476,0.00034765,4]
[309816862,1704167432935,-1570.58237922,0.00034765,4]
[309816863,1704167432948,-2271.7,0.00034765,4]
[309816895,1704167438481,-162.44234547,0.00022095,2]
[309816897,1704167438491,-28654.28438404,0.00034765,4]
[309816899,1704167438501,-309.70578029,0.00034765,2]
[309816901,1704167438510,-309.69031278,0.00034765,4]
[309816903,1704167438519,-285.22748665,0.00034765,4]
[309816905,1704167438529,-273.06003723,0.00034765,4]
[309816907,1704167438538,-2026.57814012,0.00034766,4]
[309816908,1704167438547,-235.2722466,0.00034766,4]
[309816910,1704167438557,-3902.13958521,0.00034766,4]
[309816912,1704167438567,-249.8882546,0.00034766,4]
[309816914,1704167438576,-154.86062544,0.00034766,4]
[309816916,1704167438585,-590.09569667,0.00035,2]
[309816918,1704167438595,-419.0,0.00035452,2]
[309816919,1704167438604,-298.850661,0.00035616,120]
[309816920,1704167438613,-1063.57002723,0.00035642,2]
[309816921,1704167438624,-12246.90179925,0.00036,4]
[309816922,1704167438634,-230.6472574,0.00036,4]
[309816924,1704167438646,-942.74197828,0.0003676,2]
[309816926,1704167438655,-154.86062544,0.00037,4]
[309816927,1704167438664,-953.76543698,0.00037218,2]
[309816928,1704167438674,-184.19304298,0.00037218,2]
[309816929,1704167438683,-699.93356333,0.00037218,2]
[309816930,1704167438692,-835.281501,0.0003725,2]
[309816931,1704167438701,-507.96895673,0.00038356,2]
[309816932,1704167438710,-835.281501,0.00038628,2]
[309816933,1704167438720,-469.0,0.0003874,2]
[309816934,1704167438729,-1337.77955273,0.0003893,4]
[309816935,1704167438739,-4578.07487451,0.00039269,2]
[309816936,1704167438748,-150.84915085,0.000397,2]
[309816937,1704167438757,-250.24063936,0.000397,2]
[309816938,1704167438767,-919.0,0.0004,2]
[309816939,1704167438776,-835.281501,0.00040006,2]
[309816940,1704167438785,-301.6983017,0.00040367,4]
[309816941,1704167438795,-249.993024,0.00040392,10]
[309816942,1704167438804,-306.0,0.00040703,2]
[309816943,1704167438813,-3056.12615237,0.00040798,12]
[309816944,1704167438823,-2053.81997898,0.000408,90]
[309816945,1704167438832,-215.43547727,0.00040917,2]
[309816946,1704167438842,-942.74197828,0.00040995,2]
[309816947,1704167438851,-21528.43819,0.00040999,4]
[309816948,1704167438860,-440.10724969,0.00041,2]
[309816949,1704167438870,-10011.08958279,0.00041,2]
[309816950,1704167438879,-603.3966034,0.00041046,7]
[309816951,1704167438889,-311.26424129,0.00041093,4]
[309816952,1704167438898,-476.85753893,0.00041094,2]
[309816953,1704167438908,-160.45558927,0.00041094,2]
[309816954,1704167438917,-374.39637498,0.00041094,2]
[309816955,1704167438926,-500.0,0.00041095,7]
[309816956,1704167438935,-722.85,0.00041095,7]
[309816957,1704167438944,-529.12493076,0.00041095,7]
[309816958,1704167438953,-537.0,0.00041095,7]
[309816959,1704167438962,-205.39912874,0.00041095,7]
[309816960,1704167438971,-500.0,0.00041095,7]
[309816961,1704167438980,-407.77351442,0.00041095,7]
[309816962,1704167438990,-150.0,0.00041095,7]
[309816963,1704167438999,-500.0,0.00041095,7]
[309816964,1704167439008,-500.0,0.00041095,7]
[309816965,1704167439017,-647.04,0.00041095,7]
[309816966,1704167439026,-500.0,0.00041095,7]
[309816967,1704167439035,-1019.97,0.00041095,7]
[309816968,1704167439044,-515.85994366,0.00041095,7]
[309816969,1704167439053,-500.0,0.00041095,2]
[309816970,1704167439062,-620.87649819,0.00041095,7]
[309816971,1704167439071,-504.04745941,0.00041095,7]
[309816972,1704167439093,-509.51862074,0.00041095,7]
[309816973,1704167439103,-518.03156489,0.00041095,7]
[309816974,1704167439112,-500.0,0.00041095,7]
[309816975,1704167439123,-500.0,0.00041095,7]
[309816976,1704167439133,-519.2390185,0.00041095,7]
[309816977,1704167439142,-506.94734692,0.00041095,7]
[309816978,1704167439151,-505.24422187,0.00041095,7]
[309816979,1704167439160,-500.0,0.00041095,7]
[309816980,1704167439170,-508.12761668,0.00041095,7]
[309816981,1704167439180,-569.09550758,0.00041095,7]
[309816982,1704167439189,-519.45813524,0.00041095,7]
[309816983,1704167439199,-514.71288415,0.00041095,7]
[309816984,1704167439208,-500.0,0.00041095,7]
[309816985,1704167439217,-507.09872832,0.00041095,7]
[309816986,1704167439226,-2176.39,0.00041095,7]
[309816987,1704167439236,-265.51121293,0.00041095,7]
[309816988,1704167439246,-502.94656177,0.00041095,7]
[309816989,1704167439256,-500.0,0.00041095,7]
[309816990,1704167439265,-500.0,0.00041095,7]
[309816991,1704167439275,-500.0,0.00041095,7]
[309816992,1704167439285,-600.59129394,0.00041095,7]
[309816993,1704167439294,-500.0,0.00041095,7]
[309816994,1704167439304,-500.0,0.00041095,7]
[309816995,1704167439313,-500.0,0.00041095,7]
[309816996,1704167439323,-500.0,0.00041095,7]
[309816997,1704167439332,-508.44288091,0.00041095,7]
[309816998,1704167439343,-952.22,0.00041095,7]
[309816999,1704167439353,-505.17781555,0.00041095,7]
[309817000,1704167439362,-500.0,0.00041095,7]
[309817001,1704167439372,-500.0,0.00041095,7]
[309817002,1704167439382,-502.75326566,0.00041095,7]
[309817003,1704167439392,-500.0,0.00041095,7]
[309817004,1704167439401,-500.0,0.00041095,7]
[309817005,1704167439514,-500.0,0.00041095,7]
[309817006,1704167439524,-500.0,0.00041095,7]
[309817007,1704167439534,-1983.07,0.00041095,7]
[309817008,1704167439544,-1983.07,0.00041095,7]
[309817009,1704167439554,-1983.07,0.00041095,7]
[309817010,1704167439564,-511.13209528,0.00041095,7]
[309817011,1704167439574,-1983.07,0.00041095,7]
[309817012,1704167439584,-500.0,0.00041095,7]
[309817013,1704167439593,-1983.07,0.00041095,7]
[309817014,1704167439602,-1983.07,0.00041095,7]
[309817015,1704167439611,-1983.07,0.00041095,7]
[309817016,1704167439621,-1983.07,0.00041095,7]
[309817017,1704167439631,-1983.07,0.00041095,7]
[309817018,1704167439641,-1983.07,0.00041095,7]
[309817019,1704167439650,-1983.07,0.00041095,7]
[309817020,1704167439659,-1983.07,0.00041095,7]
[309817021,1704167439668,-1983.07,0.00041095,7]
[309817022,1704167439677,-1983.07,0.00041095,7]
[309817023,1704167439686,-1983.07,0.00041095,7]
[309817024,1704167439695,-500.0,0.00041095,7]
[309817026,1704167439705,-500.0,0.00041095,7]
[309817028,1704167439714,-502.26758404,0.00041095,7]
[309817029,1704167439723,-503.76871091,0.00041095,7]
[309817030,1704167439733,-500.0,0.00041095,7]
[309817031,1704167439742,-500.0,0.00041095,7]
[309817032,1704167439751,-500.0,0.00041095,7]
[309817033,1704167439761,-500.0,0.00041095,7]
[309817034,1704167439770,-500.0,0.00041095,7]
[309817035,1704167439779,-508.23811546,0.00041095,7]
[309817036,1704167439788,-244.97619189,0.00041095,7]
[309817037,1704167439798,-502.73990605,0.00041095,7]
[309817038,1704167439807,-505.83205928,0.00041095,7]
[309817039,1704167439816,-172.41593127,0.00041095,7]
[309817040,1704167439827,-3284.78,0.00041095,7]
[309817041,1704167439836,-311.609951,0.00041095,7]
[309817042,1704167439846,-583.9633887,0.00041095,7]
[309817043,1704167439855,-500.0,0.00041095,7]
[309817044,1704167439864,-500.0,0.00041095,7]
[309817045,1704167439874,-500.0,0.00041095,7]
[309817046,1704167439884,-500.0,0.00041095,7]
[309817047,1704167439893,-500.0,0.00041095,7]
[309817048,1704167439902,-500.0,0.00041095,7]
[309817049,1704167439911,-500.0,0.00041095,7]
[309817050,1704167439920,-506.63169543,0.00041095,7]
[309817051,1704167439929,-500.0,0.00041095,7]
[309817052,1704167439938,-500.0,0.00041095,7]
[309817053,1704167439947,-507.9660242,0.00041095,7]
[309817054,1704167439956,-500.0,0.00041095,7]
[309817055,1704167439965,-503.46402141,0.00041095,7]
[309817056,1704167439974,-513.19198858,0.00041095,7]
[309817057,1704167439983,-500.0,0.00041095,7]
[309817058,1704167439992,-510.18678161,0.00041095,7]
[309817059,1704167440001,-500.0,0.00041095,7]
[309817060,1704167440010,-500.0,0.00041095,7]
[309817061,1704167440020,-500.0,0.00041095,7]
[309817062,1704167440029,-366.8039519,0.00041095,7]
[309817063,1704167440038,-500.0,0.00041095,7]
[309817064,1704167440047,-500.0,0.00041095,7]
[309817065,1704167440056,-500.0,0.00041095,7]
[309817066,1704167440066,-506.05016547,0.00041095,7]
[309817067,1704167440076,-500.0,0.00041095,7]
[309817068,1704167440085,-500.0,0.00041095,7]
[309817069,1704167440094,-500.0,0.00041095,7]
[309817070,1704167440103,-500.0,0.00041095,7]
[309817071,1704167440113,-500.0,0.00041095,7]
[309817072,1704167440122,-506.8031834,0.00041095,7]
[309817073,1704167440133,-500.0,0.00041095,7]
[309817074,1704167440142,-529.74128568,0.00041095,7]
[309817075,1704167440151,-500.0,0.00041095,7]
[309817076,1704167440160,-500.0,0.00041095,7]
[309817077,1704167440169,-353.40449712,0.00041095,7]
[309817078,1704167440180,-500.0,0.00041095,7]
[309817079,1704167440188,-500.0,0.00041095,7]
[309817080,1704167440197,-508.90637175,0.00041095,7]
[309817081,1704167440206,-500.0,0.00041095,7]
[309817082,1704167440215,-500.0,0.00041095,7]
[309817083,1704167440224,-500.0,0.00041095,7]
[309817084,1704167440234,-500.0,0.00041095,7]
[309817085,1704167440243,-513.43077945,0.00041095,7]
[309817086,1704167440252,-500.0,0.00041095,7]
[309817087,1704167440261,-46209.52,0.00041095,3]
[309817088,1704167440271,-500.0,0.00041095,7]
[309817089,1704167440280,-501.15202133,0.00041095,7]
[309817090,1704167440289,-500.0,0.00041095,7]
[309817091,1704167440298,-500.0,0.00041095,7]
[309817092,1704167440307,-500.0,0.00041095,7]
[309817093,1704167440317,-503.71771778,0.00041095,7]
[309817094,1704167440326,-500.0,0.00041095,7]
[309817095,1704167440336,-507.19171147,0.00041095,7]
[309817096,1704167440349,-500.0,0.00041095,7]
[309817097,1704167440359,-500.0,0.00041095,7]
[309817098,1704167440368,-500.0,0.00041095,7]
[309817099,1704167440378,-651.99,0.00041095,7]
[309817100,1704167440390,-510.1881942,0.00041095,7]
[309817101,1704167440399,-500.0,0.00041095,7]
[309817102,1704167440409,-504.38619575,0.00041095,7]
[309817103,1704167440419,-500.0,0.00041095,7]
[309817104,1704167440428,-500.0,0.00041095,7]
[309817105,1704167440439,-500.0,0.00041095,7]
[309817106,1704167440449,-500.0,0.00041095,7]
[309817107,1704167440459,-9353.51,0.00041095,7]
[309817108,1704167440469,-500.0,0.00041095,7]
[309817109,1704167440479,-500.0,0.00041095,7]
[309817110,1704167440489,-500.0,0.00041095,7]
[309817111,1704167440499,-500.0,0.00041095,7]
[309817112,1704167440509,-484.49110001,0.00041095,7]
[309817113,1704167440519,-500.0,0.00041095,7]
[309817114,1704167440529,-500.0,0.00041095,7]
[309817115,1704167440538,-500.0,0.00041095,7]
[309817116,1704167440549,-500.0,0.00041095,7]
[309817117,1704167440558,-500.0,0.00041095,7]
[309817118,1704167440567,-500.0,0.00041095,7]
[309817119,1704167440577,-500.0,0.00041095,7]
[309817120,1704167440586,-500.0,0.00041095,7]
[309817121,1704167440596,-500.0,0.00041095,7]
[309817122,1704167440605,-500.0,0.00041095,7]
[309817123,1704167440615,-188.8275591,0.00041095,7]
[309817124,1704167440624,-517.55320889,0.00041095,7]
[309817125,1704167440635,-500.0,0.00041095,7]
[309817126,1704167440644,-501.40539649,0.00041095,7]
[309817127,1704167440654,-500.0,0.00041095,7]
[309817128,1704167440663,-3556.77,0.00041095,7]
[309817129,1704167440673,-500.0,0.00041095,7]
[309817130,1704167440683,-602.86,0.00041095,7]
[309817131,1704167440692,-500.0,0.00041095,7]
[309817132,1704167440701,-500.0,0.00041095,7]
[309817133,1704167440710,-487.36530619,0.00041095,7]
[309817151,1704167444699,-249.993024,0.00040789,4]
[309817169,1704167446462,-353.83373431,0.00040788,4]
[309817170,1704167446472,-445.69770966,0.00040789,4]
[309817173,1704168450081,-1192.95254363,0.00025628,2]
[309817174,1704168450102,-124.65700607,0.00025628,2]
[309817176,1704168491535,268.4768647,0.0002,2]
[309817177,1704168548274,-154.84515485,0.00024855,2]
[309817178,1704168548300,-2853.03235152,0.00024855,2]
[309817245,1704168638594,-166.84988,0.00023428,2]
[309817246,1704168638604,-675.69429378,0.00024828,2]
[309817247,1704168638614,-1853.07220846,0.00024828,2]
[309817248,1704168638649,-173.50593166,0.00024828,2]
[309817249,1704168638658,-7930.22202784,0.00024829,2]
[309817250,1704168638667,-160.83720431,0.00024829,2]
[309817251,1704168638677,-154.84515485,0.0002483,2]
[309817252,1704168638687,-852.00907345,0.0002483,2]
[309817253,1704168638696,-328.73382728,0.0002483,2]
[309817255,1704168638707,-1037.2606634,0.0002483,2]
[309817257,1704168638716,-300.76052365,0.0002483,2]
[309817259,1704168638726,-3061.22,0.0002483,3]
[309817261,1704168638736,-196.299615,0.0002483,2]
[309817271,1704168638863,-2551.02,0.0002483,3]
[309817273,1704168638873,-4779.90873547,0.00024831,2]
[309817275,1704168638883,-2698.01438762,0.00024831,5]
[309817277,1704168638892,-328.21739259,0.00024831,2]
[309817279,1704168638902,-343.32706477,0.00024832,2]
[309817281,1704168638911,-1028.76933116,0.00024832,2]
[309817283,1704168638920,-154.84515485,0.00024832,2]
[309817285,1704168638929,-2989.40003667,0.00024832,2]
[309817287,1704168638939,-78227.0467231,0.0002484,2]
[309817289,1704168638948,-3731.78532301,0.00024841,2]
[309817291,1704168638958,-4907.56129694,0.00024841,2]
[309817293,1704168638967,-524.73174263,0.00024841,2]
[309817295,1704168638975,-1584.45813486,0.00024842,2]
[309817297,1704168638985,-14217.0238232,0.00024842,2]
[309817299,1704168638994,-2031.17478188,0.00024842,2]
[309817301,1704168639003,-10473.05577926,0.00024842,2]
[309817302,1704168639012,-13669.99879992,0.00024842,2]
[309817303,1704168639021,-4802.57442748,0.00024843,2]
[309817304,1704168639030,-162.44234547,0.00024843,2]
[309817305,1704168639040,-154.84515485,0.00024843,2]
[309817306,1704168639049,-36759.8431187,0.00024843,2]
[309817307,1704168639058,-154.86062544,0.00024854,2]
[309817308,1704168639068,-3384.1862163,0.00024855,2]
[309817310,1704168639077,-1552.34705231,0.00024857,2]
[309817311,1704168639087,-2901.72152644,0.00024859,2]
[309817312,1704168639096,-413.39883265,0.0002486,2]
[309817313,1704168639105,-6076.6024275,0.00024982,2]
[309817314,1704168639114,-178.40912131,0.00025,2]
[309817315,1704168639123,-4702.13843099,0.00025,2]
[309817316,1704168639132,-166.84988,0.00025025,2]
[309817317,1704168639141,-663.93163578,0.00025111,2]
[309817318,1704168639150,-1362.66980997,0.00025111,2]
[309817319,1704168639159,-157.92635778,0.00025111,2]
[309817320,1704168639168,-261.2715888,0.00025111,2]
[309817321,1704168639177,-322.86935835,0.00025111,2]
[309817322,1704168639186,-198.5260656,0.00025111,2]
[309817323,1704168639196,-155.15889919,0.00025111,2]
[309817324,1704168639205,-176.24809374,0.00025111,2]
[309817325,1704168639214,-400.9882906,0.00025111,2]
[309817326,1704168639223,-1733.76705189,0.00025111,2]
[309817327,1704168639233,-154.86062544,0.00025111,2]
[309817328,1704168639241,-453.26817428,0.00025111,2]
[309817329,1704168639250,-154.86062544,0.00025111,2]
[309817330,1704168639259,-155.9150112,0.00025111,2]
[309817331,1704168639269,-155.25563182,0.00025111,2]
[309817332,1704168639278,-941.86125495,0.00025111,2]
[309817333,1704168639287,-162.05733397,0.00025111,2]
[309817334,1704168639296,-294.84794068,0.00025111,2]
[309817335,1704168639306,-406.76791682,0.00025111,2]
[309817336,1704168639315,-577.09878801,0.00025111,2]
[309817337,1704168639324,-255.28394121,0.00025111,2]
[309817338,1704168639333,-155.03277991,0.00025111,2]
[309817339,1704168639342,-169.32640451,0.00025111,2]
[309817340,1704168639351,-253.50303766,0.00025111,7]
[309817341,1704168639361,-555.15473275,0.00025111,2]
[309817342,1704168639370,-1007.62231098,0.00025111,2]
[309817343,1704168639379,-627.44383495,0.00025111,2]
[309817344,1704168639388,-154.86062544,0.00025111,2]
[309817345,1704168639398,-1237.70128856,0.00025111,2]
[309817346,1704168639407,-154.86062544,0.00025111,2]
[309817347,1704168639417,-2096.37865301,0.00025112,2]
[309817348,1704168639426,-1967.67181909,0.00025115,2]
[309817349,1704168639435,-6645.44245741,0.0002553,2]
[309817350,1704168639445,-148.40303116,0.00025628,2]
[309817351,1704168639454,-1192.9533408,0.00025628,2]
[309817352,1704168639463,-1337.77955273,0.00025639,2]
[309817353,1704168639472,-235.2722466,0.00025896,2]
[309817354,1704168639481,-300.68220091,0.00025896,2]
[309817355,1704168639491,-155.13179299,0.00025896,2]
[309817356,1704168639500,-260.47439741,0.00025896,2]
[309817357,1704168639510,-170.11525091,0.00025896,2]
[309817358,1704168639520,-155.05749334,0.00025896,2]
[309817359,1704168639529,-486.71528746,0.00025896,2]
[309817360,1704168639538,-500.0,0.00025896,2]
[309817361,1704168639548,-215.32099347,0.00025896,2]
[309817362,1704168639557,-285.22748665,0.00025897,2]
[309817363,1704168639566,-15852.35378489,0.00025897,2]
[309817364,1704168639575,-3902.13958521,0.00025898,2]
[309817365,1704168639585,-255.048066,0.00025899,2]
[309817366,1704168639594,-578.50055777,0.00025899,5]
[309817367,1704168639603,-154.86062544,0.00025899,2]
[309817368,1704168639613,-249.8882546,0.000259,2]
[309817369,1704168639622,-2726.35945967,0.000259,2]
[309817370,1704168639632,-1948.469892,0.00025901,2]
[309817371,1704168639642,-1948.469892,0.00025901,2]
[309817372,1704168639652,-1948.469892,0.00025901,2]
[309817373,1704168639661,-1948.469892,0.00025901,2]
[309817374,1704168639672,-1948.469892,0.00025901,2]
[309817375,1704168639682,-524.83738866,0.00026,2]
[309817376,1704168639691,-924.230104,0.00026301,2]
[309817377,1704168639701,-166.84988,0.00026622,2]
[309817378,1704168639713,-155.75064648,0.00027,2]
[309817379,1704168639722,-559.40932026,0.00027076,2]
[309817380,1704168639731,-24900.0,0.00027077,2]
[309817381,1704168639740,-924.230104,0.00027275,2]
[309817382,1704168639750,-200.0,0.00027341,15]
[309817383,1704168639759,-535.43693604,0.00027573,2]
[309817384,1704168639768,-1204.2071574,0.00027673,2]
[309817385,1704168639777,-976.288089,0.00027673,2]
[309817386,1704168639787,-11213.51096633,0.00027998,2]
[309817387,1704168639796,-924.230104,0.00028248,2]
[309817388,1704168639805,-157.05964581,0.0002828,2]
[309817389,1704168639814,-227.52275642,0.000289,2]
[309817390,1704168639824,-924.230104,0.00029221,2]
[309817391,1704168639833,-446.68374029,0.0003,2]
[309817392,1704168639848,-405.0,0.0003,2]
[309817393,1704168639857,-170.13254358,0.0003,2]
[309817394,1704168639867,-280.0,0.00030075,15]
[309817395,1704168639876,-924.230104,0.00030194,2]
[309817396,1704168639886,-285.09577651,0.00030747,4]
[309817397,1704168639895,-4273.30458547,0.00030747,2]
[309817398,1704168639904,-1241.1075989,0.00030747,4]
[309817399,1704168639913,-535.43693604,0.00030905,2]
[309817400,1704168639923,-1072.66969299,0.00031342,2]
[309817401,1704168639932,-216.47365635,0.00032,10]
[309817402,1704168639941,-984.5444071,0.00032,2]
[309817403,1704168639950,-642.63348465,0.0003291,2]
[309817404,1704168639959,-686.7472763,0.00033,3]
[309817405,1704168639968,-391.0,0.00033082,15]
[309817406,1704168639978,-4758.69672081,0.00034,2]
[309817407,1704168639987,-1000.0,0.00034,7]
[309817408,1704168639996,-535.43693604,0.00034237,2]
[309817409,1704168640005,-621.13167423,0.00034555,2]
[309817410,1704168640014,-501.86850669,0.00035,7]
[309817411,1704168640023,-9304.29587217,0.00035,3]
[309817412,1704168640033,-590.09569667,0.00035,2]
[309817413,1704168640043,-3537.57585844,0.00035,2]
[309817414,1704168640053,-154.84515485,0.00035,4]
[309817415,1704168640063,-155.20325427,0.00035,2]
[309817416,1704168640073,-790.9739129,0.00035,4]
[309817417,1704168640082,-180.14054089,0.000355,14]
[309817418,1704168640091,-350.0,0.00035589,2]
[309817419,1704168640100,-444.599825,0.00035616,120]
[309817420,1704168640110,-230.6472574,0.00036,4]
[309817421,1704168640119,-12486.30552533,0.00036,4]
[309817422,1704168640128,-200.0,0.0003639,15]
[309817423,1704168640137,-348.0,0.0003639,15]
[309817424,1704168640146,-276.5020075,0.0003671,4]
[309817425,1704168640155,-154.84515485,0.00036999,4]
[309817426,1704168640164,-154.84515485,0.00037,4]
[309817427,1704168640174,-837.76651367,0.00037218,2]
[309817428,1704168640183,-174.98339083,0.00037218,2]
[309817429,1704168640192,-3216.72439493,0.00037218,2]
[309817430,1704168640201,-535.43693604,0.00037568,2]
[309817431,1704168640210,-363.23875403,0.00038,30]
[309817432,1704168640219,-400.0,0.00038877,2]
[309817433,1704168640228,-4296.80275042,0.00038995,2]
[309817434,1704168640237,-187.3137686,0.00039515,2]
[309817435,1704168640246,-1500.0,0.000397,2]
[309817436,1704168640256,-72699.34988218,0.00039998,2]